[Event "FIN-ch Seniors 65 2020"]
[Site "Helsinki"]
[Date "2020.09.25"]
[Round "2.3"]
[White "Jarnstrom, Henrik"]
[Black "Patola, Eero"]
[Result "1/2-1/2"]
[ECO "B01"]
[WhiteElo "1696"]
[BlackElo "1826"]
[Annotator "NA RC"]
[PlyCount "106"]
[EventDate "2020.09.24"]
[EventType "swiss"]
[EventCountry "FIN"]
[SourceTitle "playchess.com"]
[Source "ChessBase"]
[SourceQuality "1"]
[TimeControl "40/5400+30:1800+30"]

{[%evp 12,106,101,32767,74,32767,115,102,87,69,61,65,108,114,32767,88,84,77,97,25,47,60,170,186,231,194,191,31,46,29,66,27,150,60,216,231,233,258,267,217,249,251,233,255,241,66,35,54,67,32767,78,57,76,61,32767,32767,49,32767,60,32767,67,170,32767,32767,190,221,1193,175,184,15,53,0,0,0,0,0,0,0,0,0,0,0,0,0,0,0,0,0,0,0,0,0,0,0,0,0,0]} 1. e4 {[%emt 0:02:19]} d5 {[%emt 0:03:49]} 2. exd5 {[%emt 0:00:16]} Nf6 {[%emt 0:01:23]} 3. d4 {[%emt 0:00:39]} Nxd5 {[%emt 0:00:13]} 4. c4 {[%emt 0:00:25]} Nb6 {[%emt 0:00:07]} 5. Be3 {[%emt 0:00:41]} c6 {[%emt 0:00:52]} 6. Nc3 {[%emt 0:00:38] B01: Scandinavian Defence.} g6 {[%emt 0:00:51]} 7. h3 {[%emt 0:01:17]} Bg7 {[%emt 0:00:13]} 8. Nf3 {[%emt 0:00:30]} Be6 {[%emt 0:02:35]} 9. b3 {[%emt 0:02:38]} c5 {[%emt 0:01:31]} 10. Rc1 {[%emt 0:00:38]} cxd4 {[%emt 0:02:15] [#]} 11. Nxd4 $146 {[%emt 0:00:19]} ({Predecessor:} 11. Bxd4 O-O 12. Bxg7 Qxd1+ 13. Rxd1 Kxg7 14. Nd4 Bc8 15. Be2 Na6 16. O-O Nc7 17. Bf3 {1-0 (50) Brajovic,M (2147)-Buzganovic,J Belgrade 2007}) 11... Bd7 {[%emt 0:05:39]} 12. c5 {[%emt 0:03:02]} Nc8 {[%emt 0:00:22]} 13. b4 {[%emt 0:01:50]} O-O {[%emt 0:02:21]} 14. Be2 {[%emt 0:01:31]} Nc6 {[%emt 0:03:07]} 15. b5 {[%emt 0:01:49]} (15. Nxc6 $16 bxc6 16. O-O) 15... Nxd4 {[%emt 0:03:18]} 16. Bxd4 {[%emt 0:00:09]} Bxd4 {[%emt 0:01:45]} (16... e5 $14 17. Be3 Ne7) 17. Qxd4 {[%emt 0:00:12]} Be6 {[%emt 0:00:44]} 18. Qe4 {[%emt 0:01:08]} Qc7 {[%emt 0:03:21]} 19. O-O $2 {[%emt 0:02:47]} (19. Qe3 $18) 19... Qxc5 {[%emt 0:08:33]} 20. Qxb7 {[%emt 0:00:22]} Nb6 {[%emt 0:06:50]} 21. Bf3 {[%emt 0:04:38]} Bc8 {[%emt 0:08:11]} ({Black should try} 21... Qa3 $14) 22. Qe4 {[%emt 0:01:42]} (22. Qc6 $16 Qxc6 23. bxc6) 22... Bf5 {[%emt 0:01:15]} (22... Rb8 $14) 23. Qe2 {[%emt 0:01:04]} Rae8 {[%emt 0:07:42] [#]} 24. Bc6 $1 {[%emt 0:01:26]} Bd7 {[%emt 0:02:34] [#]} 25. Na4 $1 {[%emt 0:04:01]} Qd4 {[%emt 0:02:52]} 26. Nxb6 {[%emt 0:05:09]} Bxc6 {[%emt 0:01:08]} 27. bxc6 {[%emt 0:00:20]} Qxb6 {[%emt 0:02:58]} 28. Rfd1 $2 {[%emt 0:01:19]} (28. c7 $18) 28... Rc8 {[%emt 0:03:27]} 29. Qe4 {[%emt 0:02:33]} Rfd8 {[%emt 0:03:28]} 30. Qxe7 {[%emt 0:02:04]} Rxd1+ {[%emt 0:02:33]} 31. Rxd1 {[%emt 0:00:08]} Qxc6 {[%emt 0:05:02]} 32. Rd8+ {[%emt 0:00:26]} Rxd8 {[%emt 0:05:15]} 33. Qxd8+ {[%emt 0:00:10]} Kg7 {[%emt 0:00:12]} 34. Qd4+ {[%emt 0:00:03]} Qf6 {[%emt 0:02:50]} 35. Qxa7 {[%emt 0:00:13]} Qa1+ {[%emt 0:01:39]} 36. Kh2 {[%emt 0:00:13]} Qe5+ {[%emt 0:00:59]} 37. g3 {[%emt 0:00:08]} h5 {[%emt 0:01:07]} 38. h4 {[%emt 0:00:27]} g5 $2 {[%emt 0:01:27] [#]} (38... Qb2 39. a4 g5 40. hxg5 h4) 39. hxg5 {[%emt 0:00:23]} (39. Qe3 $142 $1 Qa1 40. Qxg5+ {[%mdl 64] Double Attack} Kf8 41. Qxh5) 39... h4 {[%emt 0:01:48] [#]} 40. Kg2 $2 {[%emt 0:02:55]} (40. Qe3 $1 $18 {[%cal Re3e5]} hxg3+ 41. Qxg3) 40... hxg3 {[%emt 0:01:54]} 41. fxg3 {[%emt 0:30:13]} Qe4+ {[%emt 0:02:04]} 42. Kf2 {[%emt 0:00:00]} Qf5+ {[%emt 0:03:16]} 43. Ke2 {[%emt 0:00:00]} Qg4+ {[%emt 0:01:11]} 44. Kd2 {[%emt 0:00:00]} Qxg5+ {[%emt 0:02:59]} 45. Kc2 {[%emt 0:00:00]} (45. Qe3 $5 {[%cal Re3g5]} Qd5+ 46. Qd3 Qxa2+ 47. Ke3 $11) 45... Qxg3 {[%emt 0:05:08]} 46. Qd4+ {[%emt 0:00:00]} f6 {[%emt 0:01:55]} 47. a4 {[%emt 0:00:00]} Qg2+ {[%emt 0:01:06]} 48. Kb3 {[%emt 0:00:00]} Qb7+ {[%emt 0:01:10]} 49. Qb4 {[%emt 0:00:00]} Qd5+ {[%emt 0:01:42]} 50. Qc4 {[%emt 0:00:00]} Qb7+ {[%emt 0:02:16]} 51. Qb5 {[%emt 0:00:00]} Qf3+ {[%emt 0:00:48]} 52. Kb4 {[%emt 0:00:00]} Qe4+ {[%emt 0:00:42]} 53. Ka5 {[%emt 0:00:00]} Qa8+ $11 {[%emt 0:00:49]} 1/2-1/2

[Event "FIN-ch Seniors 65 2020"]
[Site "Helsinki"]
[Date "2020.09.25"]
[Round "2.4"]
[White "Tiensuu, Seppo"]
[Black "Terasalo, Kari"]
[Result "0-1"]
[ECO "B24"]
[WhiteElo "1412"]
[BlackElo "1782"]
[Annotator "NA RC"]
[PlyCount "50"]
[EventDate "2020.09.24"]
[EventType "swiss"]
[EventCountry "FIN"]
[SourceTitle "playchess.com"]
[Source "ChessBase"]
[SourceQuality "1"]
[TimeControl "40/5400+30:1800+30"]

1. e4 {[%emt 0:00:24]} c5 {[%emt 0:03:34]} 2. Nc3 {[%emt 0:00:33]} d6 {[%emt 0:00:15]} 3. g3 {[%emt 0:00:18]} Nf6 {[%emt 0:00:28]} 4. Bg2 {[%emt 0:00:18]} Nc6 {[%emt 0:00:09]} 5. Nce2 {[%emt 0:01:21]} e5 {[%emt 0:00:56]} 6. c3 {[%emt 0:00:20]} Qb6 {[%emt 0:02:14]} 7. Nf3 {[%emt 0:02:04]} Nxe4 {[%emt 0:04:17]} 8. Nxe5 {[%emt 0:00:50]} Nxf2 {[%emt 0:01:44]} 9. Bxc6+ {[%emt 0:00:58]} bxc6 {[%emt 0:01:24]} 10. Kxf2 {[%emt 0:06:02]} dxe5 {[%emt 0:00:30]} 11. d3 {[%emt 0:02:20]} Bd6 {[%emt 0:02:44]} 12. b3 {[%emt 0:01:43]} O-O {[%emt 0:00:14]} 13. Be3 {[%emt 0:07:02]} Qd8 {[%emt 0:02:30]} 14. Qc2 {[%emt 0:03:13]} Bh3 {[%emt 0:01:26]} 15. Ke1 {[%emt 0:06:08]} Qf6 {[%emt 0:01:17]} 16. Kd2 {[%emt 0:00:54]} Rad8 {[%emt 0:02:56]} 17. Rae1 {[%emt 0:03:39]} e4 {[%emt 0:00:40]} 18. d4 {[%emt 0:02:10]} cxd4 {[%emt 0:03:14]} 19. cxd4 {[%emt 0:02:35]} Bb4+ {[%emt 0:01:56]} 20. Nc3 {[%emt 0:00:23]} c5 {[%emt 0:02:46]} 21. Qxe4 {[%emt 0:06:05]} cxd4 {[%emt 0:00:47]} 22. Kc2 {[%emt 0:01:27]} Bf5 {[%emt 0:00:42]} 23. Rhf1 {[%emt 0:02:08]} Bxe4+ {[%emt 0:00:29]} 24. Nxe4 {[%emt 0:00:15]} Qc6+ {[%emt 0:01:01]} 25. Kb1 {[%emt 0:00:35]} Qxe4+ {[%emt 0:00:27]} 0-1

[Event "FIN-ch Seniors 65 2020"]
[Site "Helsinki"]
[Date "2020.09.25"]
[Round "2.5"]
[White "Saharinen, Petri"]
[Black "Virtanen, Esko"]
[Result "1-0"]
[ECO "D20"]
[WhiteElo "1720"]
[BlackElo "1739"]
[Annotator "NA RC"]
[PlyCount "27"]
[EventDate "2020.09.24"]
[EventType "swiss"]
[EventCountry "FIN"]
[SourceTitle "playchess.com"]
[Source "ChessBase"]
[SourceQuality "1"]
[TimeControl "40/5400+30:1800+30"]

1. d4 {[%emt 0:00:00]} d5 {[%emt 0:00:00]} 2. c4 {[%emt 0:00:00]} c6 {[%emt 0:00:00]} 3. Nf3 {[%emt 0:00:00]} dxc4 {[%emt 0:00:00]} 4. e4 {[%emt 0:00:39]} Nf6 {[%emt 0:00:32]} 5. e5 {[%emt 0:02:11]} Nd5 {[%emt 0:00:47]} 6. Bxc4 {[%emt 0:00:24]} e6 {[%emt 0:00:57]} 7. O-O {[%emt 0:00:12]} Be7 {[%emt 0:00:02]} 8. Nc3 {[%emt 0:00:22]} O-O {[%emt 0:00:09]} 9. Ne4 {[%emt 0:01:06]} h6 {[%emt 0:01:57]} 10. Ng3 {[%emt 0:01:49]} f5 {[%emt 0:04:29]} 11. exf6 {[%emt 0:01:21]} Bxf6 {[%emt 0:00:20]} 12. Ne5 {[%emt 0:02:04]} Re8 {[%emt 0:01:26]} 13. Qh5 {[%emt 0:01:06]} Qc7 {[%emt 0:04:40]} 14. Qxe8+ {[%emt 0:00:28]} 1-0

[Event "FIN-ch Seniors 65 2020"]
[Site "Helsinki"]
[Date "2020.09.25"]
[Round "3.1"]
[White "Ruotanen, Helge"]
[Black "Karppinen, Martti"]
[Result "*"]
[ECO "A41"]
[WhiteElo "1946"]
[BlackElo "1878"]
[Annotator "NA"]
[PlyCount "65"]
[EventDate "2020.09.24"]
[EventType "swiss"]
[EventCountry "FIN"]
[SourceTitle "playchess.com"]
[Source "ChessBase"]
[SourceQuality "1"]
[TimeControl "40/5400+30:1800+30"]

1. Nf3 {[%emt 0:00:00]} g6 {[%emt 0:01:52]} 2. c4 {[%emt 0:00:00]} Bg7 {[%emt 0:00:11]} 3. d4 {[%emt 0:00:00]} d6 {[%emt 0:00:09]} 4. Nc3 {[%emt 0:00:00]} Bg4 {[%emt 0:00:53]} 5. e3 {[%emt 0:00:06]} Nc6 {[%emt 0:02:15]} 6. Be2 {[%emt 0:00:19]} e5 {[%emt 0:00:36]} 7. d5 {[%emt 0:02:10]} Nce7 {[%emt 0:00:17]} 8. e4 {[%emt 0:00:34]} h6 {[%emt 0:00:27]} 9. Be3 {[%emt 0:15:53]} f5 {[%emt 0:01:46]} 10. g3 {[%emt 0:03:32]} Qd7 {[%emt 0:03:51]} 11. c5 {[%emt 0:09:08]} fxe4 {[%emt 0:04:45]} 12. Nxe4 {[%emt 0:08:04]} Nf6 {[%emt 0:04:52]} 13. Nxf6+ {[%emt 0:04:37]} Bxf6 {[%emt 0:00:07]} 14. Qb3 {[%emt 0:01:05]} Qf5 {[%emt 0:07:28]} 15. Nd2 {[%emt 0:07:24]} Bxe2 {[%emt 0:09:30]} 16. Kxe2 {[%emt 0:00:03]} e4 {[%emt 0:00:37]} 17. Qc4 {[%emt 0:07:14]} O-O {[%emt 0:01:42]} 18. Qxe4 {[%emt 0:01:56]} Rae8 {[%emt 0:01:23]} 19. Qxf5 {[%emt 0:04:31]} Nxf5 {[%emt 0:00:42]} 20. Kd3 {[%emt 0:00:21]} Nxe3 {[%emt 0:00:37]} 21. fxe3 {[%emt 0:00:07]} Re5 {[%emt 0:01:21]} 22. e4 {[%emt 0:01:38]} dxc5 {[%emt 0:01:26]} 23. Rhf1 {[%emt 0:09:15]} Re7 {[%emt 0:00:27]} 24. Rac1 {[%emt 0:03:15]} b6 {[%emt 0:00:57]} 25. b3 {[%emt 0:00:43]} Kg7 {[%emt 0:00:14]} 26. a4 {[%emt 0:00:51]} Rd8 {[%emt 0:00:10]} 27. Nc4 {[%emt 0:05:38]} c6 {[%emt 0:00:58]} 28. d6 {[%emt 0:00:26]} b5 {[%emt 0:01:02]} 29. axb5 {[%emt 0:07:51]} cxb5 {[%emt 0:00:07]} 30. Nd2 {[%emt 0:00:19]} Rxd6+ {[%emt 0:00:09]} 31. Ke2 {[%emt 0:02:43]} Bg5 {[%emt 0:00:17]} 32. Rfd1 {[%emt 0:00:32]} Red7 {[%emt 0:54:52]} 33. Rf1 {[%emt 0:00:00]} *

[Event "FIN-ch Seniors 65 2020"]
[Site "Helsinki"]
[Date "2020.09.25"]
[Round "3.1"]
[White "Ruotanen, Helge"]
[Black "Karppinen, Martti"]
[Result "1/2-1/2"]
[ECO "A00"]
[WhiteElo "1946"]
[BlackElo "1878"]
[Annotator "NA"]
[PlyCount "43"]
[EventDate "2020.09.24"]
[EventType "swiss"]
[EventCountry "FIN"]
[SourceTitle "playchess.com"]
[Source "ChessBase"]
[SourceQuality "1"]
[TimeControl "40/5400+30:1800+30"]

1. g3 {[%emt 0:00:00]} g6 {[%emt 0:02:11]} 2. d3 {[%emt 0:00:05]} Bg7 {[%emt 0:00:37]} 3. Nc3 {[%emt 0:00:40]} Nc6 {[%emt 0:00:33]} 4. Bg2 {[%emt 0:00:20]} d6 {[%emt 0:01:39]} 5. e4 {[%emt 1:31:25]} Nd4 {[%emt 0:02:30]} 6. h3 {[%emt 0:00:00]} c5 {[%emt 0:00:42]} 7. f4 {[%emt 0:00:00]} h5 {[%emt 0:04:19]} 8. Nd5 {[%emt 0:00:00]} Nf6 {[%emt 0:07:55]} 9. Ne3 {[%emt 0:00:00]} Rb8 {[%emt 0:03:09]} 10. c3 {[%emt 0:00:00]} Nc6 {[%emt 0:02:15]} 11. Nf3 {[%emt 0:00:00]} Be6 {[%emt 0:05:20]} 12. Ng5 {[%emt 0:00:00]} Qc8 {[%emt 0:06:17]} 13. O-O {[%emt 0:00:00]} Nh7 {[%emt 0:02:13]} 14. Nxh7 {[%emt 0:00:00]} Rxh7 {[%emt 0:00:09]} 15. f5 {[%emt 0:00:00]} Bd7 {[%emt 0:01:23]} 16. a4 {[%emt 0:00:00]} b6 {[%emt 0:04:37]} 17. Qb3 {[%emt 0:00:00]} gxf5 {[%emt 0:09:57]} 18. Nxf5 {[%emt 0:00:00]} Be6 {[%emt 0:00:44]} 19. Qc2 {[%emt 0:00:00]} Be5 {[%emt 0:01:45]} 20. Qf2 {[%emt 0:00:00]} Bxf5 {[%emt 0:02:35]} 21. exf5 {[%emt 0:00:00]} Bf6 {[%emt 0:06:08]} 22. Bf4 {[%emt 0:00:00]} 1/2-1/2

[Event "FIN-ch Seniors 65 2020"]
[Site "Helsinki"]
[Date "2020.09.25"]
[Round "3.3"]
[White "Terasalo, Kari"]
[Black "Koskinen, Hannu E."]
[Result "0-1"]
[ECO "A38"]
[WhiteElo "1782"]
[BlackElo "1753"]
[Annotator "NA"]
[PlyCount "130"]
[EventDate "2020.09.24"]
[EventType "swiss"]
[EventCountry "FIN"]
[SourceTitle "playchess.com"]
[Source "ChessBase"]
[SourceQuality "1"]
[TimeControl "40/5400+30:1800+30"]

1. Nf3 {[%emt 0:00:47]} Nf6 {[%emt 0:00:00]} 2. c4 {[%emt 0:00:10]} c5 {[%emt 0:00:00]} 3. g3 {[%emt 0:00:26]} g6 {[%emt 0:00:00]} 4. Bg2 {[%emt 0:00:07]} Bg7 {[%emt 0:00:00]} 5. O-O {[%emt 0:00:45]} O-O {[%emt 0:00:00]} 6. Nc3 {[%emt 0:00:48]} Nc6 {[%emt 0:00:00]} 7. d3 {[%emt 0:01:18]} d6 {[%emt 0:01:47]} 8. Bg5 {[%emt 0:02:05]} h6 {[%emt 0:01:10]} 9. Bd2 {[%emt 0:00:55]} a6 {[%emt 0:00:56]} 10. Qc1 {[%emt 0:00:46]} Kh7 {[%emt 0:00:09]} 11. Re1 {[%emt 0:06:52]} Rb8 {[%emt 0:00:33]} 12. a3 {[%emt 0:02:53]} Bd7 {[%emt 0:02:09]} 13. Rb1 {[%emt 0:02:49]} b5 {[%emt 0:05:35]} 14. Nd5 {[%emt 0:01:34]} Nxd5 {[%emt 0:03:25]} 15. cxd5 {[%emt 0:00:15]} Nd4 {[%emt 0:01:38]} 16. Nxd4 {[%emt 0:04:06]} cxd4 {[%emt 0:00:42]} 17. e4 {[%emt 0:01:39]} dxe3 {[%emt 0:01:16]} 18. Bxe3 {[%emt 0:01:36]} Bf5 {[%emt 0:04:30]} 19. Qd2 {[%emt 0:05:18]} Qd7 {[%emt 0:01:07]} 20. f3 {[%emt 0:02:06]} h5 {[%emt 0:09:44]} 21. Rbc1 {[%emt 0:02:20]} Rbc8 {[%emt 0:00:35]} 22. Qe2 {[%emt 0:03:35]} Bf6 {[%emt 0:06:30]} 23. Rc6 {[%emt 0:04:37]} Rxc6 {[%emt 0:15:48]} 24. dxc6 {[%emt 0:00:15]} Qe6 {[%emt 0:00:20]} 25. c7 {[%emt 0:09:50]} Qb3 {[%emt 0:01:04]} 26. d4 {[%emt 0:02:23]} Bd3 {[%emt 0:05:09]} 27. Qd2 {[%emt 0:00:33]} Rc8 {[%emt 0:08:12]} 28. Rc1 {[%emt 0:09:13]} Bc4 {[%emt 0:00:19]} 29. Rc3 {[%emt 0:02:35]} Qa2 {[%emt 0:03:09]} 30. Qc1 {[%emt 0:01:08]} e5 {[%emt 0:02:47]} 31. dxe5 {[%emt 0:09:29]} Bxe5 {[%emt 0:01:09]} 32. Rc2 {[%emt 0:00:35]} Rxc7 {[%emt 0:01:32]} 33. f4 {[%emt 0:01:04]} Bg7 {[%emt 0:01:34]} 34. Bf3 {[%emt 0:04:09]} Re7 {[%emt 0:00:36]} 35. Bf2 {[%emt 0:01:07]} Qb3 {[%emt 0:03:23]} 36. Kg2 {[%emt 0:03:19]} Bd5 {[%emt 0:02:50]} 37. Bxd5 {[%emt 0:01:01]} Qxd5+ {[%emt 0:05:01]} 38. Kg1 {[%emt 0:00:57]} Bd4 {[%emt 0:02:35]} 39. Rd2 {[%emt 0:05:28]} Bxf2+ {[%emt 0:00:18]} 40. Kxf2 {[%emt 0:00:41]} Qc5+ {[%emt 0:00:08]} 41. Qxc5 {[%emt 0:30:59]} dxc5 {[%emt 0:30:04]} 42. Rd6 {[%emt 0:00:38]} Re6 {[%emt 0:00:43]} 43. Rd5 {[%emt 0:03:21]} Rc6 {[%emt 0:05:21]} 44. Ke2 {[%emt 0:00:50]} Kg7 {[%emt 0:02:32]} 45. Kf2 {[%emt 0:01:17]} Kf6 {[%emt 0:00:42]} 46. Kf3 {[%emt 0:00:46]} c4 {[%emt 0:01:15]} 47. Ke4 {[%emt 0:02:02]} Re6+ {[%emt 0:02:54]} 48. Kd4 {[%emt 0:01:01]} Re2 {[%emt 0:01:40]} 49. Rd6+ {[%emt 0:01:07]} Ke7 {[%emt 0:00:25]} 50. Rxa6 {[%emt 0:00:00]} Rxh2 {[%emt 0:00:00]} 51. Ra7+ {[%emt 0:00:00]} Ke6 {[%emt 0:00:00]} 52. Ra6+ {[%emt 0:00:00]} Kf5 {[%emt 0:00:00]} 53. Rb6 {[%emt 0:00:00]} Rd2+ {[%emt 0:00:00]} 54. Kc5 {[%emt 0:00:00]} Rxb2 {[%emt 0:00:00]} 55. a4 {[%emt 0:00:00]} c3 {[%emt 0:00:00]} 56. Kd4 {[%emt 0:00:00]} bxa4 {[%emt 0:00:00]} 57. Rc6 {[%emt 0:00:00]} a3 {[%emt 0:00:00]} 58. Rxc3 {[%emt 0:00:00]} a2 {[%emt 0:00:00]} 59. Ra3 {[%emt 0:00:00]} Rg2 {[%emt 0:00:00]} 60. Ra5+ {[%emt 0:00:00]} Kg4 {[%emt 0:00:00]} 61. Ke4 {[%emt 0:00:00]} f5+ {[%emt 0:00:00]} 62. Ke5 {[%emt 0:00:00]} Kxg3 {[%emt 0:00:00]} 63. Ra6 {[%emt 0:00:00]} Kh2 {[%emt 0:00:00]} 64. Kf6 {[%emt 0:00:00]} h4 {[%emt 0:00:00]} 65. Kg7 {[%emt 0:00:00]} Kg1 {[%emt 0:00:00]} 0-1

[Event "FIN-ch Seniors 65 2020"]
[Site "Helsinki"]
[Date "2020.09.25"]
[Round "3.4"]
[White "Virtanen, Esko"]
[Black "Tiensuu, Seppo"]
[Result "1-0"]
[ECO "D02"]
[WhiteElo "1739"]
[BlackElo "1412"]
[Annotator "NA"]
[PlyCount "49"]
[EventDate "2020.09.24"]
[EventType "swiss"]
[EventCountry "FIN"]
[SourceTitle "playchess.com"]
[Source "ChessBase"]
[SourceQuality "1"]
[TimeControl "40/5400+30:1800+30"]

1. Nf3 {[%emt 0:01:49]} d5 {[%emt 0:00:00]} 2. d4 {[%emt 0:00:06]} Bg4 {[%emt 0:00:46]} 3. Ne5 {[%emt 0:02:28]} Bh5 {[%emt 1:30:44]} 4. c4 {[%emt 0:11:33]} f6 {[%emt 0:00:00]} 5. g4 {[%emt 0:00:15]} dxc4 {[%emt 0:00:00]} 6. gxh5 {[%emt 0:04:59]} fxe5 {[%emt 0:00:00]} 7. d5 {[%emt 0:03:31]} Nf6 {[%emt 0:00:00]} 8. Nc3 {[%emt 0:00:13]} e6 {[%emt 0:00:00]} 9. e4 {[%emt 0:00:08]} Bb4 {[%emt 0:00:00]} 10. Qa4+ {[%emt 0:00:06]} c6 {[%emt 0:00:00]} 11. Qxb4 {[%emt 0:00:03]} b6 {[%emt 0:00:00]} 12. dxe6 {[%emt 0:00:24]} a5 {[%emt 0:00:00]} 13. Qxc4 {[%emt 0:00:12]} Qd4 {[%emt 0:00:00]} 14. h6 {[%emt 0:01:10]} b5 {[%emt 0:00:00]} 15. Qxd4 {[%emt 0:01:11]} exd4 {[%emt 0:00:00]} 16. hxg7 {[%emt 0:00:13]} Rg8 {[%emt 0:00:00]} 17. Ne2 {[%emt 0:00:49]} Nxe4 {[%emt 0:00:00]} 18. Nxd4 {[%emt 0:00:13]} Rxg7 {[%emt 0:00:00]} 19. f4 {[%emt 0:00:45]} Nd6 {[%emt 0:00:00]} 20. f5 {[%emt 0:00:58]} Rg4 {[%emt 0:00:00]} 21. Be3 {[%emt 0:01:33]} Re4 {[%emt 0:00:00]} 22. Kf2 {[%emt 0:00:42]} c5 {[%emt 0:00:00]} 23. Bxb5+ {[%emt 0:03:20]} Nxb5 {[%emt 0:00:00]} 24. Nxb5 {[%emt 0:00:04]} Na6 {[%emt 0:00:00]} 25. Nd6+ {[%emt 0:00:31]} 1-0

[Event "FIN-ch Seniors 65 2020"]
[Site "Helsinki"]
[Date "2020.09.25"]
[Round "3.5"]
[White "Jarnstrom, Henrik"]
[Black "Saharinen, Petri"]
[Result "0-1"]
[ECO "A07"]
[WhiteElo "1696"]
[BlackElo "1720"]
[Annotator "NA"]
[PlyCount "79"]
[EventDate "2020.09.24"]
[EventType "swiss"]
[EventCountry "FIN"]
[SourceTitle "playchess.com"]
[Source "ChessBase"]
[SourceQuality "1"]
[TimeControl "40/5400+30:1800+30"]

1. Nf3 {[%emt 0:00:00]} Nf6 {[%emt 0:00:00]} 2. d3 {[%emt 0:00:00]} d5 {[%emt 0:00:00]} 3. g3 {[%emt 0:00:00]} c6 {[%emt 0:00:00]} 4. Bg2 {[%emt 0:00:00]} g6 {[%emt 0:00:11]} 5. O-O {[%emt 0:00:05]} Bg7 {[%emt 0:00:08]} 6. Nbd2 {[%emt 0:02:36]} O-O {[%emt 0:00:20]} 7. Ne1 {[%emt 0:01:21]} e5 {[%emt 0:01:24]} 8. Nb3 {[%emt 0:02:14]} Bg4 {[%emt 0:02:14]} 9. h3 {[%emt 0:00:13]} Be6 {[%emt 0:01:30]} 10. Bd2 {[%emt 0:02:11]} Nbd7 {[%emt 0:00:33]} 11. f4 {[%emt 0:02:00]} Qb6+ {[%emt 0:01:23]} 12. Kh2 {[%emt 0:00:30]} exf4 {[%emt 0:05:28]} 13. Bxf4 {[%emt 0:00:58]} c5 {[%emt 0:01:21]} 14. Rb1 {[%emt 0:02:19]} Rac8 {[%emt 0:00:51]} 15. Nd2 {[%emt 0:04:28]} Nh5 {[%emt 0:00:48]} 16. b3 {[%emt 0:00:39]} Nxf4 {[%emt 0:00:16]} 17. Rxf4 {[%emt 0:00:15]} Be5 {[%emt 0:03:28]} 18. Rf3 {[%emt 0:05:47]} Nf6 {[%emt 0:00:30]} 19. e4 {[%emt 0:01:47]} dxe4 {[%emt 0:06:11]} 20. Nxe4 {[%emt 0:00:42]} Nxe4 {[%emt 0:00:24]} 21. dxe4 {[%emt 0:00:05]} Rcd8 {[%emt 0:02:41]} 22. Nd3 {[%emt 0:00:58]} Qc7 {[%emt 0:01:40]} 23. Qe2 {[%emt 0:00:48]} Bg7 {[%emt 0:03:48]} 24. c4 {[%emt 0:01:06]} b6 {[%emt 0:00:14]} 25. Rbf1 {[%emt 0:00:25]} Bc8 {[%emt 0:03:12]} 26. Nf4 {[%emt 0:00:19]} Bb7 {[%emt 0:00:54]} 27. Nd5 {[%emt 0:00:20]} Qe5 {[%emt 0:01:25]} 28. Rd3 {[%emt 0:01:02]} f5 {[%emt 0:00:59]} 29. Re1 {[%emt 0:00:58]} fxe4 {[%emt 0:05:17]} 30. Bxe4 {[%emt 0:02:11]} Rde8 {[%emt 0:04:48]} 31. Re3 {[%emt 0:00:28]} Bh6 {[%emt 0:06:03]} 32. Rf3 {[%emt 0:05:21]} Rxf3 {[%emt 0:00:51]} 33. Qxf3 {[%emt 0:00:42]} Rf8 {[%emt 0:01:19]} 34. Qe2 {[%emt 0:03:06]} Kh8 {[%emt 0:03:14]} 35. Qg2 {[%emt 0:00:38]} Qd4 {[%emt 0:00:54]} 36. Re2 {[%emt 0:00:28]} Bg7 {[%emt 0:01:37]} 37. Nf4 {[%emt 0:01:57]} Bxe4 {[%emt 0:01:42]} 38. Qxe4 {[%emt 0:00:38]} g5 {[%emt 0:03:46]} 39. Ne6 {[%emt 0:02:35]} Rf2+ {[%emt 0:00:58]} 40. Rxf2 {[%emt 0:00:11]} 0-1